Workbook

Sheet Plan1 (hidden)
A1: CNPB
A2: Ano de cálculo
A3: Prazo do Fluxo
A4: TA
A8: FLUXOS ANUAIS PROJETADOS | B8: =+Premissas!B8 -> 2014 | C8: =+B8+1 -> 2015
A9: FLUXOS DE SEGURIDADE para o cálculo da duration (Fi) | B9: =+B10-B20 -> 0 | C9: =+C10-C20 -> 0
A10: RECEBIMENTOS de Assistidos | B10: =SUM(B11:B14) -> 0 | C10: =SUM(C11:C14) -> 0
A11: - Contribuições Normais de Assistidos
A12: - Contribuições Normais da Patrocinadora (Contraparte Contribuição de Assistidos)
A13: - Contribuições Extraordinárias de assistidos
A14: - Contribuições Extraordinárias da Patrocinadora (Contraparte Contribuição de Assistidos)
A15: RECEBIMENTOS de Ativos * | B15: =SUM(B16:B19) -> 0 | C15: =SUM(C16:C19) -> 0
A16: - Contribuições Normais de Ativos *
A17: - Contribuições Normais da Patrocinadora (Contraparte Contribuição de Ativos) *
A18: - Contribuições Extraordinárias de Ativos *
A19: - Contribuições Extraordinárias da Patrocinadora (Contraparte Contribuição de Ativos) *
A20: PAGAMENTOS | B20: =SUM(B21:B24) -> 0 | C20: =SUM(C21:C24) -> 0
A21: - Benefícios Programados
A22: - Benefícios de Risco
A23: - Resgates
A24: - Portabilidade
A25: * Fluxos não considerados no cálculo da Duration.
A33: Numerador | B33: =(B9/(1+$B$4)^(B8-$B$8+0.5))*(B8-$B$8+0.5) -> 0 | C33: =(C9/(1+$B$4)^(C8-$B$8+0.5))*(C8-$B$8+0.5) -> 0
A34: Denominador | B34: =(B9/(1+$B$4)^(B8-$B$8+0.5)) -> 0 | C34: =(C9/(1+$B$4)^(C8-$B$8+0.5)) -> 0

Sheet Premissas
Q1: =RANDBETWEEN(1,1000) -> 875 | R1: 727 | S1: =RANDBETWEEN(1,1000) -> 517 | T1: 537
A4: Planilha para o cálculo da Duração e Taxa de Juros Parâmetro
A6: Informações
A7: Data da avaliação | B7: 2013-12-31 | C7: A avaliação de encerramento de exercício que gerou os fluxos a serem informados
A8: Ano de cálculo | B8: 2014
A9: Prazo do fluxo | C9: anos
A10: TA | C10: onde, TA = a taxa de juros real anual aplicada no ano anterior pelo respectivo plano de benefícios.

Sheet Instruções
A2: A Planilha está formatada para o cálculo automático da Duração do passivo calculada e taxa parâmetro.
A3: Para geração da tabela, deverão ser observados os seguintes procedimentos:
B4: Ao abrir a tabela o usuário deverá autorizar a execução de macros.
B5: Para iniciar o cálculo, o usuário deverá preencher os campos: Prazo do Fluxo e TA
C6: Prazo do Fluxo é a quantidade de anos para a projeção do pagamento de benefícios.
C7: TA é a taxa de juros real anual aplicada no ano anterior pelo respectivo plano de benefícios.
A8: Após esse preenchimento deverá clicar no botão "Gerar Tabela".
A9: Uma macro será executada e criará uma tabela para a inserção dos fluxos até o prazo informado.
A10: Deverão ser preenchidos, em módulo, os valores por ano para os campos:
B11: Contribuições Normais de Assistidos
B12: Contribuições Normais da Patrocinadora (Contraparte Contribuição de Assistidos)
B13: Contribuições Extraordinárias de assistidos
B14: Contribuições Extraordinárias da Patrocinadora (Contraparte Contribuição de Assistidos)
B15: Contribuições Normais de Ativos
B16: Contribuições Normais da Patrocinadora (Contraparte Contribuição de Ativos)
B17: Contribuições Extraordinárias de Ativos
B18: Contribuições Extraordinárias da Patrocinadora (Contraparte Contribuição de Ativos)
B19: Benefícios Programados
B20: Benefícios de Risco
B21: Resgates
B22: Portabilidade
A23: Após esse preenchimento a planilha calculará a duração do passivo e as taxas de referência, mínima e máxima
A24: Esta aba poderá ser exportada clicando no botão "Exportar Fluxo". Assim o usuário deverá "salvar como" caso queira guardar o resultado.
A25: A mesma planilha poderá ser utilizada no cálculo da duração do passivo de mais de um CNPB, bastando para isso, após a exportação dos resultados clicar no botão "Excluir aba do Fluxo" e reiniciar a operação.

Sheet parametros (hidden)
A1: Prazo anos | C1: Média 3 anos | D1: Máximo | E1: Mínimo | F1: 100
A2: 1 | B2: =A2*2 -> 2 | C2: 0.03210095238 | D2: =+C2+0.004 -> 0.03610095238 | E2: =ROUND(C2*0.7,4) -> 0.0225 | G2: 1 | H2: 3.210095238 | I2: =H2+0.4 -> 3.610095238 | J2: =ROUND(H2*0.7,2) -> 2.25
A3: 1.5 | B3: =A3*2 -> 3 | C3: 0.03641010185 | D3: 0.04041010185 | E3: 0.0255 | G3: 1.5 | H3: 3.641010185 | I3: 4.041010185 | J3: =ROUND(H3*0.7,2) -> 2.55
A4: 2 | B4: 4 | C4: 0.03994910053 | D4: 0.04394910053 | E4: 0.028 | G4: 2 | H4: 3.994910053 | I4: 4.394910053 | J4: 2.8
A5: 2.5 | B5: 5 | C5: 0.04247958069 | D5: 0.04647958069 | E5: 0.0297 | G5: 2.5 | H5: 4.247958069 | I5: 4.647958069 | J5: 2.97
A6: 3 | B6: 6 | C6: 0.0443053836 | D6: 0.0483053836 | E6: 0.031 | G6: 3 | H6: 4.43053836 | I6: 4.83053836 | J6: 3.1
A7: 3.5 | B7: 7 | C7: 0.04566765344 | D7: 0.04966765344 | E7: 0.032 | G7: 3.5 | H7: 4.566765344 | I7: 4.966765344 | J7: 3.2
A8: 4 | B8: 8 | C8: 0.04672025132 | D8: 0.05072025132 | E8: 0.0327 | G8: 4 | H8: 4.672025132 | I8: 5.072025132 | J8: 3.27
A9: 4.5 | B9: 9 | C9: 0.04755920767 | D9: 0.05155920767 | E9: 0.0333 | G9: 4.5 | H9: 4.755920767 | I9: 5.155920767 | J9: 3.33
A10: 5 | B10: 10 | C10: 0.04824558995 | D10: 0.05224558995 | E10: 0.0338 | G10: 5 | H10: 4.824558995 | I10: 5.224558995 | J10: 3.38
A11: 5.5 | B11: 11 | C11: 0.04881948016 | D11: 0.05281948016 | E11: 0.0342 | G11: 5.5 | H11: 4.881948016 | I11: 5.281948016 | J11: 3.42
A12: 6 | B12: 12 | C12: 0.0493079418 | D12: 0.0533079418 | E12: 0.0345 | G12: 6 | H12: 4.93079418 | I12: 5.33079418 | J12: 3.45
A13: 6.5 | B13: 13 | C13: 0.04972990476 | D13: 0.05372990476 | E13: 0.0348 | G13: 6.5 | H13: 4.972990476 | I13: 5.372990476 | J13: 3.48
A14: 7 | B14: 14 | C14: 0.05009908333 | D14: 0.05409908333 | E14: 0.0351 | G14: 7 | H14: 5.009908333 | I14: 5.409908333 | J14: 3.51
A15: 7.5 | B15: 15 | C15: 0.05042545899 | D15: 0.05442545899 | E15: 0.0353 | G15: 7.5 | H15: 5.042545899 | I15: 5.442545899 | J15: 3.53
A16: 8 | B16: 16 | C16: 0.05071659656 | D16: 0.05471659656 | E16: 0.0355 | G16: 8 | H16: 5.071659656 | I16: 5.471659656 | J16: 3.55
A17: 8.5 | B17: 17 | C17: 0.05097832407 | D17: 0.05497832407 | E17: 0.0357 | G17: 8.5 | H17: 5.097832407 | I17: 5.497832407 | J17: 3.57
A18: 9 | B18: 18 | C18: 0.0512152672 | D18: 0.0552152672 | E18: 0.0359 | G18: 9 | H18: 5.12152672 | I18: 5.52152672 | J18: 3.59
A19: 9.5 | B19: 19 | C19: 0.05143103704 | D19: 0.05543103704 | E19: 0.036 | G19: 9.5 | H19: 5.143103704 | I19: 5.543103704 | J19: 3.6
A20: 10 | B20: 20 | C20: 0.05162858995 | D20: 0.05562858995 | E20: 0.0361 | G20: 10 | H20: 5.162858995 | I20: 5.562858995 | J20: 3.61
A21: 10.5 | B21: 21 | C21: 0.05181031878 | D21: 0.05581031878 | E21: 0.0363 | G21: 10.5 | H21: 5.181031878 | I21: 5.581031878 | J21: 3.63
A22: 11 | B22: 22 | C22: 0.05197821958 | D22: 0.05597821958 | E22: 0.0364 | G22: 11 | H22: 5.197821958 | I22: 5.597821958 | J22: 3.64
A23: 11.5 | B23: 23 | C23: 0.05213396296 | D23: 0.05613396296 | E23: 0.0365 | G23: 11.5 | H23: 5.213396296 | I23: 5.613396296 | J23: 3.65
A24: 12 | B24: 24 | C24: 0.0522789127 | D24: 0.0562789127 | E24: 0.0366 | G24: 12 | H24: 5.22789127 | I24: 5.62789127 | J24: 3.66
A25: 12.5 | B25: 25 | C25: 0.05241424206 | D25: 0.05641424206 | E25: 0.0367 | G25: 12.5 | H25: 5.241424206 | I25: 5.641424206 | J25: 3.67
A26: 13 | B26: 26 | C26: 0.05254103307 | D26: 0.05654103307 | E26: 0.0368 | G26: 13 | H26: 5.254103307 | I26: 5.654103307 | J26: 3.68
A27: 13.5 | B27: 27 | C27: 0.05266009392 | D27: 0.05666009392 | E27: 0.0369 | G27: 13.5 | H27: 5.266009392 | I27: 5.666009392 | J27: 3.69
A28: 14 | B28: 28 | C28: 0.05277220503 | D28: 0.05677220503 | E28: 0.0369 | G28: 14 | H28: 5.277220503 | I28: 5.677220503 | J28: 3.69
A29: 14.5 | B29: 29 | C29: 0.05287797354 | D29: 0.05687797354 | E29: 0.037 | G29: 14.5 | H29: 5.287797354 | I29: 5.687797354 | J29: 3.7
A30: 15 | B30: 30 | C30: 0.0529780582 | D30: 0.0569780582 | E30: 0.0371 | G30: 15 | H30: 5.29780582 | I30: 5.69780582 | J30: 3.71
A31: 15.5 | B31: 31 | C31: 0.05307285847 | D31: 0.05707285847 | E31: 0.0372 | G31: 15.5 | H31: 5.307285847 | I31: 5.707285847 | J31: 3.72
A32: 16 | B32: 32 | C32: 0.0531628955 | D32: 0.0571628955 | E32: 0.0372 | G32: 16 | H32: 5.31628955 | I32: 5.71628955 | J32: 3.72
A33: 16.5 | B33: 33 | C33: 0.05324853175 | D33: 0.05724853175 | E33: 0.0373 | G33: 16.5 | H33: 5.324853175 | I33: 5.724853175 | J33: 3.73
A34: 17 | B34: 34 | C34: 0.05333008862 | D34: =+C34+0.004 -> 0.05733008862 | E34: 0.0373 | G34: 17 | H34: 5.333008862 | I34: =H34+0.4 -> 5.733008862 | J34: 3.73
A35: 17.5 | B35: 35 | C35: 0.05340793254 | D35: 0.05740793254 | E35: 0.0374 | G35: 17.5 | H35: 5.340793254 | I35: 5.740793254 | J35: 3.74
A36: 18 | B36: 36 | C36: 0.05348230688 | D36: 0.05748230688 | E36: 0.0374 | G36: 18 | H36: 5.348230688 | I36: 5.748230688 | J36: 3.74
A37: 18.5 | B37: 37 | C37: 0.05355347487 | D37: 0.05755347487 | E37: 0.0375 | G37: 18.5 | H37: 5.355347487 | I37: 5.755347487 | J37: 3.75
A38: 19 | B38: 38 | C38: 0.05362162566 | D38: 0.05762162566 | E38: 0.0375 | G38: 19 | H38: 5.362162566 | I38: 5.762162566 | J38: 3.75
A39: 19.5 | B39: 39 | C39: 0.05368703439 | D39: 0.05768703439 | E39: 0.0376 | G39: 19.5 | H39: 5.368703439 | I39: 5.768703439 | J39: 3.76
A40: 20 | B40: 40 | C40: 0.05374980952 | D40: 0.05774980952 | E40: 0.0376 | G40: 20 | H40: 5.374980952 | I40: 5.774980952 | J40: 3.76
A41: 20.5 | B41: 41 | C41: 0.05381016667 | D41: 0.05781016667 | E41: 0.0377 | G41: 20.5 | H41: 5.381016667 | I41: 5.781016667 | J41: 3.77
A42: 21 | B42: 42 | C42: 0.05386825529 | D42: 0.05786825529 | E42: 0.0377 | G42: 21 | H42: 5.386825529 | I42: 5.786825529 | J42: 3.77
A43: 21.5 | B43: 43 | C43: 0.0539242037 | D43: 0.0579242037 | E43: 0.0377 | G43: 21.5 | H43: 5.39242037 | I43: 5.79242037 | J43: 3.77
A44: 22 | B44: 44 | C44: 0.05397813757 | D44: 0.05797813757 | E44: 0.0378 | G44: 22 | H44: 5.397813757 | I44: 5.797813757 | J44: 3.78
A45: 22.5 | B45: 45 | C45: 0.05403019048 | D45: 0.05803019048 | E45: 0.0378 | G45: 22.5 | H45: 5.403019048 | I45: 5.803019048 | J45: 3.78
A46: 23 | B46: 46 | C46: 0.05408041931 | D46: 0.05808041931 | E46: 0.0379 | G46: 23 | H46: 5.408041931 | I46: 5.808041931 | J46: 3.79
A47: 23.5 | B47: 47 | C47: 0.05412900265 | D47: 0.05812900265 | E47: 0.0379 | G47: 23.5 | H47: 5.412900265 | I47: 5.812900265 | J47: 3.79
A48: 24 | B48: 48 | C48: 0.05417598942 | D48: 0.05817598942 | E48: 0.0379 | G48: 24 | H48: 5.417598942 | I48: 5.817598942 | J48: 3.79
A49: 24.5 | B49: 49 | C49: 0.05422143254 | D49: 0.05822143254 | E49: 0.038 | G49: 24.5 | H49: 5.422143254 | I49: 5.822143254 | J49: 3.8
A50: 25 | B50: 50 | C50: 0.0542654709 | D50: 0.0582654709 | E50: 0.038 | G50: 25 | H50: 5.42654709 | I50: 5.82654709 | J50: 3.8
A51: 25.5 | B51: 51 | C51: 0.05430812963 | D51: 0.05830812963 | E51: 0.038 | G51: 25.5 | H51: 5.430812963 | I51: 5.830812963 | J51: 3.8
A52: 26 | B52: 52 | C52: 0.05434950926 | D52: 0.05834950926 | E52: 0.038 | G52: 26 | H52: 5.434950926 | I52: 5.834950926 | J52: 3.8
A53: 26.5 | B53: 53 | C53: 0.05438965079 | D53: 0.05838965079 | E53: 0.0381 | G53: 26.5 | H53: 5.438965079 | I53: 5.838965079 | J53: 3.81
A54: 27 | B54: 54 | C54: 0.05442863624 | D54: 0.05842863624 | E54: 0.0381 | G54: 27 | H54: 5.442863624 | I54: 5.842863624 | J54: 3.81
A55: 27.5 | B55: 55 | C55: 0.05446648016 | D55: 0.05846648016 | E55: 0.0381 | G55: 27.5 | H55: 5.446648016 | I55: 5.846648016 | J55: 3.81
A56: 28 | B56: 56 | C56: 0.05450327778 | D56: 0.05850327778 | E56: 0.0382 | G56: 28 | H56: 5.450327778 | I56: 5.850327778 | J56: 3.82
A57: 28.5 | B57: 57 | C57: 0.05453901984 | D57: 0.05853901984 | E57: 0.0382 | G57: 28.5 | H57: 5.453901984 | I57: 5.853901984 | J57: 3.82
A58: 29 | B58: 58 | C58: 0.05457380291 | D58: 0.05857380291 | E58: 0.0382 | G58: 29 | H58: 5.457380291 | I58: 5.857380291 | J58: 3.82
A59: 29.5 | B59: 59 | C59: 0.05460766534 | D59: 0.05860766534 | E59: 0.0382 | G59: 29.5 | H59: 5.460766534 | I59: 5.860766534 | J59: 3.82
A60: 30 | B60: 60 | C60: 0.05464065608 | D60: 0.05864065608 | E60: 0.0382 | G60: 30 | H60: 5.464065608 | I60: 5.864065608 | J60: 3.82
A61: 30.5 | B61: 61 | C61: 0.05467275 | D61: 0.05867275 | E61: 0.0383 | G61: 30.5 | H61: 5.467275 | I61: 5.867275 | J61: 3.83
A62: 31 | B62: 62 | C62: 0.05470403571 | D62: 0.05870403571 | E62: 0.0383 | G62: 31 | H62: 5.470403571 | I62: 5.870403571 | J62: 3.83
A63: 31.5 | B63: 63 | C63: 0.05473452646 | D63: 0.05873452646 | E63: 0.0383 | G63: 31.5 | H63: 5.473452646 | I63: 5.873452646 | J63: 3.83
A64: 32 | B64: 64 | C64: 0.05476424339 | D64: 0.05876424339 | E64: 0.0383 | G64: 32 | H64: 5.476424339 | I64: 5.876424339 | J64: 3.83
A65: 32.5 | B65: 65 | C65: 0.05479326587 | D65: 0.05879326587 | E65: 0.0384 | G65: 32.5 | H65: 5.479326587 | I65: 5.879326587 | J65: 3.84
A66: 33 | B66: 66 | C66: 0.05482155291 | D66: =+C66+0.004 -> 0.05882155291 | E66: =ROUND(C66*0.7,4) -> 0.0384 | G66: 33 | H66: 5.482155291 | I66: =H66+0.4 -> 5.882155291 | J66: 3.84
A67: 33.5 | B67: =A67*2 -> 67 | C67: 0.05484918519 | D67: 0.05884918519 | E67: 0.0384 | G67: 33.5 | H67: 5.484918519 | I67: 5.884918519 | J67: =ROUND(H67*0.7,2) -> 3.84
A68: 34 | B68: 68 | C68: 0.05487616931 | D68: 0.05887616931 | E68: 0.0384 | G68: 34 | H68: 5.487616931 | I68: 5.887616931 | J68: 3.84
A69: 34.5 | B69: 69 | C69: 0.05490248545 | D69: 0.05890248545 | E69: 0.0384 | G69: 34.5 | H69: 5.490248545 | I69: 5.890248545 | J69: 3.84
A70: 35 | B70: 70 | C70: 0.0549282209 | D70: 0.0589282209 | E70: =ROUND(C70*0.7,4) -> 0.0384 | G70: 35 | H70: 5.49282209 | I70: 5.89282209 | J70: 3.84
